bitfinex/quotes_BTCUSD_20241206
["timestamp","ask_amount","ask_price","bid_price","bid_amount"]
[1733481285043,0.001731,97910.0,97909.0,0.46083154]
[1733481285492,0.002731,97910.0,97909.0,0.65417143]
[1733481285685,0.002731,97910.0,97909.0,0.99178437]
[1733481285890,0.002731,97910.0,97909.0,0.85454448]
[1733481286270,0.003731,97910.0,97909.0,0.66307262]
[1733481286465,0.003731,97910.0,97909.0,1.00056798]
[1733481286751,0.003731,97910.0,97909.0,0.66307262]
[1733481287179,0.2059172,97950.0,97930.0,0.0105]
[1733481287180,0.0017302,97950.0,97930.0,0.0105]
[1733481287405,0.0017302,97950.0,97931.0,0.02402091]
[1733481287621,0.0017302,97950.0,97939.0,0.204208]
[1733481287854,0.0017302,97950.0,97940.0,0.00102091]
[1733481288258,0.0017302,97950.0,97940.0,0.20522691]
[1733481288731,0.0017302,97950.0,97940.0,0.40943291]
[1733481288939,0.00280148,97950.0,97940.0,0.40943291]
[1733481289167,0.00280148,97950.0,97942.0,0.204202]
[1733481289168,0.00180148,97950.0,97942.0,0.204202]
[1733481289336,0.00280148,97950.0,97942.0,0.204202]
[1733481289886,0.00180148,97950.0,97942.0,0.204202]
[1733481290091,0.00280148,97950.0,97942.0,0.204202]
[1733481290504,0.204187,97949.0,97940.0,0.009]
[1733481290627,0.00280148,97950.0,97940.0,0.009]
[1733481290827,0.02069835,97949.0,97940.0,0.009]
[1733481291040,0.00280148,97950.0,97930.0,0.1605]
[1733481291041,0.2042,97943.0,97930.0,0.214726]
[1733481291710,0.2042,97943.0,97942.0,0.001]
[1733481291917,0.2042,97943.0,97930.0,0.204226]
[1733481291918,0.00180148,97950.0,97927.0,0.023]
[1733481292154,0.204202,97942.0,97930.0,0.009]
[1733481292372,0.0116659,97941.0,97930.0,0.009]
[1733481292583,0.204202,97942.0,97928.0,0.204231]
[1733481293484,0.001,97941.0,97930.0,0.009]
[1733481293734,0.204206,97940.0,97930.0,0.009]
[1733481294167,0.204206,97940.0,97930.0,0.018]
[1733481294597,0.204206,97940.0,97930.0,0.009]
[1733481294818,0.204195,97946.0,97931.0,0.205246]
[1733481295051,0.001,97942.0,97931.0,0.205246]
[1733481295292,0.00180148,97950.0,97938.0,0.204209]
[1733481295825,0.002,97940.0,97939.0,0.00102095]
[1733481296064,0.001,97940.0,97939.0,0.07812095]
[1733481296297,0.001,97942.0,97940.0,0.408412]
[1733481296514,0.001,97942.0,97941.0,0.00102089]
[1733481297435,0.002,97942.0,97941.0,0.00102089]
[1733481297689,0.002,97942.0,97941.0,0.04872089]
[1733481297920,0.002,97942.0,97941.0,0.17675243]
[1733481298139,0.002,97942.0,97941.0,0.17675239]
[1733481298367,0.001,97942.0,97941.0,0.17675239]
[1733481298774,0.001,97942.0,97941.0,0.38275239]
[1733481298977,0.001,97942.0,97941.0,0.43173154]
[1733481299183,0.00180148,97950.0,97948.0,0.023]
[1733481299433,0.00180148,97950.0,97949.0,0.20520772]
[1733481299683,0.00180148,97950.0,97949.0,0.227187]
[1733481301459,0.00280148,97950.0,97949.0,0.009]
[1733481301665,0.00280148,97950.0,97949.0,0.01002082]
[1733481302269,0.00280148,97950.0,97949.0,0.42235236]
[1733481302499,0.00280148,97950.0,97949.0,0.46233154]
[1733481302679,0.0006655,97950.0,97949.0,0.51063154]
[1733481302882,0.204087,97997.0,97986.0,0.20411]
[1733481303091,0.01595974,98024.0,97973.0,0.1228]
[1733481303092,0.01959298,97998.0,97987.0,0.00102053]
[1733481303315,0.01959298,97998.0,97974.0,0.05]
[1733481303316,0.00058208,97998.0,97995.0,0.204091]
[1733481303524,0.00058208,97998.0,97978.0,0.1]
[1733481303743,0.00058208,97998.0,97994.0,0.204093]
[1733481304261,0.00058208,97998.0,97995.0,0.20511138]
[1733481304536,0.00058208,97998.0,97995.0,0.40920238]
[1733481305189,0.00058208,97998.0,97997.0,0.204087]
[1733481305432,0.00058208,97998.0,97995.0,0.204091]
[1733481305745,0.00058208,97998.0,97995.0,0.408182]
[1733481305948,0.00058208,97998.0,97995.0,0.409182]
[1733481306147,0.00058208,97998.0,97995.0,0.408182]
[1733481306346,0.00058208,97998.0,97997.0,0.001]
[1733481307773,0.00058208,97998.0,97997.0,0.00102025]
[1733481308678,0.00058208,97998.0,97997.0,0.00202025]
[1733481309337,0.00058208,97998.0,97997.0,0.001]
[1733481309569,0.00058208,97998.0,97997.0,0.00202025]
[1733481309793,0.00058208,97998.0,97997.0,0.001]
[1733481310736,0.00058208,97998.0,97997.0,0.00202034]
[1733481311939,0.00058208,97998.0,97997.0,0.08022034]
[1733481312271,0.00058208,97998.0,97997.0,0.40825188]
[1733481312496,0.00058208,97998.0,97997.0,0.53732925]
[1733481312757,0.2017298,98030.0,98009.0,0.05]
[1733481312962,0.00180289,98010.0,98009.0,0.38209354]
[1733481314287,0.2017298,98030.0,98023.0,0.204033]
[1733481314623,0.20180103,98030.0,98023.0,0.204033]
[1733481314971,0.20180103,98030.0,98019.0,0.20404]
[1733481315172,0.204021,98029.0,98012.0,0.204056]
[1733481315380,0.204021,98029.0,98013.0,0.30908554]
[1733481315590,0.204021,98029.0,98023.0,0.007]
[1733481316016,0.204021,98029.0,98023.0,0.009]
[1733481316520,0.204031,98024.0,98005.0,0.204071]
[1733481316721,0.204044,98018.0,98005.0,0.15]
[1733481316895,0.204044,98018.0,98006.0,0.00102014]
[1733481317371,0.20180103,98030.0,98006.0,0.20508914]
[1733481317487,0.20180103,98030.0,98006.0,0.204069]
[1733481317488,0.204036,98022.0,98006.0,0.204069]
[1733481317694,0.204036,98022.0,98019.0,0.009]
[1733481317897,0.204044,98018.0,98005.0,0.15]
[1733481318121,0.204044,98018.0,97978.0,0.09058374]
[1733481318122,0.204046,98017.0,98006.0,0.009]
[1733481318329,0.0828,98021.0,98006.0,0.009]
[1733481318528,0.204025,98027.0,98009.0,0.204062]
[1733481318728,0.204025,98027.0,98019.0,0.009]
[1733481318932,0.20180103,98030.0,98019.0,0.009]
[1733481319137,0.204021,98029.0,98010.0,0.00102018]
[1733481319338,0.204021,98029.0,98011.0,0.00102018]
[1733481319553,0.30683257,98030.0,98008.0,0.204064]
[1733481319761,0.30683257,98030.0,98009.0,0.00102018]
[1733481319965,0.204041,98020.0,98009.0,0.00102018]
[1733481320328,0.204041,98020.0,98009.0,0.01002018]
[1733481320821,0.204041,98020.0,98006.0,0.00102019]
[1733481321131,0.204039,98020.0,98019.0,0.001]
[1733481321304,0.204059,98011.0,97997.0,0.204086]
[1733481321509,0.204059,98011.0,98009.0,0.002]
[1733481321911,0.204052,98015.0,97998.0,0.00102026]
[1733481322109,0.204021,98029.0,98006.0,0.003]
[1733481322310,0.204025,98027.0,98006.0,0.003]
[1733481322490,0.10503154,98026.0,98009.0,0.009]
[1733481322892,0.10503154,98026.0,97998.0,0.204085]
[1733481322893,0.204056,98013.0,97998.0,0.204085]
[1733481323312,0.204056,98013.0,98006.0,0.009]
[1733481323772,0.18443154,98012.0,98009.0,0.009]
[1733481324201,0.18443154,98012.0,97978.0,0.09233788]
[1733481324202,0.204098,97992.0,97979.0,0.204125]
[1733481324405,0.204098,97992.0,97978.0,0.0822]
[1733481324612,0.204098,97992.0,97977.0,0.02018062]
[1733481324613,0.408196,97992.0,97977.0,0.02018062]
[1733481324844,0.204098,97992.0,97978.0,0.204127]
[1733481325048,0.204091,97996.0,97979.0,0.00102045]
[1733481325249,0.204074,98004.0,97979.0,0.20514445]
[1733481325453,0.00531925,98011.0,97983.0,0.05]
[1733481325674,0.00531925,98011.0,97996.0,0.204089]
[1733481325939,0.204054,98014.0,98009.0,0.009]
[1733481326370,0.204054,98014.0,98000.0,0.204081]
[1733481327321,0.204054,98014.0,98000.0,0.20415229]
[1733481327740,0.204054,98014.0,98000.0,0.20915229]
[1733481327981,0.204054,98014.0,98001.0,0.00102024]
[1733481328388,0.20935807,98020.0,98003.0,0.204075]
[1733481328518,0.20935807,98020.0,98005.0,0.204069]
[1733481328706,0.20935807,98020.0,98000.0,7.129e-05]
[1733481328707,0.00531807,98020.0,98007.0,0.204066]
[1733481328915,0.00531807,98020.0,98010.0,0.204058]
[1733481329124,0.00531807,98020.0,98011.0,0.00102018]
[1733481329324,0.00531807,98020.0,98012.0,0.204056]
[1733481329750,0.00531807,98020.0,98005.0,0.0887]
[1733481329751,0.2017298,98030.0,98013.0,0.10605172]
[1733481330014,0.2017298,98030.0,98027.0,0.40805]
[1733481330501,0.2017298,98030.0,98023.0,0.204031]
[1733481330502,0.014752,98045.0,98029.0,0.15]
[1733481330874,0.014752,98045.0,98039.0,0.204]
[1733481331314,0.014752,98045.0,98039.0,0.30903154]
[1733481332090,0.001903,98040.0,98039.0,0.39417953]
[1733481332697,0.001903,98040.0,98039.0,0.40317953]
[1733481333471,0.001903,98040.0,98039.0,0.36358396]
[1733481333673,0.001903,98040.0,98039.0,0.41358396]
[1733481333873,0.001903,98040.0,98039.0,0.40458396]
[1733481334073,0.001903,98040.0,98039.0,0.41358396]
[1733481334477,0.001903,98040.0,98039.0,0.61358396]
[1733481334725,0.001903,98040.0,98039.0,0.60458396]
[1733481334897,0.001903,98040.0,98039.0,0.61358396]
[1733481335286,0.001903,98040.0,98039.0,0.60458396]
[1733481335744,0.001903,98040.0,98039.0,0.61358396]
[1733481336194,0.001903,98040.0,98039.0,0.60458396]
[1733481336416,0.001903,98040.0,98039.0,0.68618396]
[1733481336618,0.014752,98045.0,98044.0,0.47699]
[1733481336835,0.014752,98045.0,98044.0,0.58202154]
[1733481337007,0.014752,98045.0,98044.0,0.58514225]
[1733481338809,0.014752,98045.0,98044.0,0.59414225]
[1733481339054,0.014752,98045.0,98044.0,0.60314225]
[1733481339227,0.014752,98045.0,98044.0,0.50314225]
[1733481339653,0.014752,98045.0,98044.0,0.60314225]
[1733481341111,0.001728,98060.0,98049.0,0.1]
[1733481341332,0.001728,98060.0,98049.0,0.58303008]
[1733481341547,0.0002081,98050.0,98049.0,0.71299749]
[1733481341699,0.001728,98060.0,98059.0,0.1315]
[1733481341895,0.001728,98060.0,98059.0,0.61746431]
[1733481342115,0.001728,98060.0,98059.0,1.03265381]
[1733481342312,0.001728,98060.0,98059.0,1.06790586]
[1733481342538,0.001728,98060.0,98059.0,1.13764418]
[1733481342750,0.001728,98060.0,98059.0,0.80259328]
[1733481342973,0.001728,98060.0,98059.0,0.70660095]
[1733481343180,0.001728,98060.0,98059.0,1.14680791]
[1733481343404,0.001728,98060.0,98059.0,1.21321799]
[1733481343606,0.001728,98060.0,98059.0,1.21444364]
[1733481343997,0.001728,98060.0,98059.0,1.07816142]
[1733481344687,0.001728,98060.0,98059.0,1.08716142]
[1733481345409,0.00731,98098.0,98059.0,1.08716142]
[1733481345410,0.00731,98098.0,98077.0,0.05]
[1733481345668,0.00731,98098.0,98097.0,0.203879]
[1733481346382,0.00731,98098.0,98097.0,0.20682272]
[1733481346597,0.00789157,98098.0,98097.0,0.20682272]
[1733481346813,0.00789157,98098.0,98097.0,0.00294372]
[1733481347281,0.00789157,98098.0,98097.0,0.001]
[1733481347508,0.00789157,98098.0,98097.0,0.00393942]
[1733481347734,0.00789157,98098.0,98097.0,0.001]
[1733481347954,0.00789157,98098.0,98097.0,0.00393942]
[1733481348179,0.00789157,98098.0,98097.0,0.001]
[1733481348438,0.00789157,98098.0,98097.0,0.00393942]
[1733481348679,0.00789157,98098.0,98092.0,0.203889]
[1733481348931,0.00789157,98098.0,98097.0,0.00393942]
[1733481349160,0.00789157,98098.0,98097.0,0.001]
[1733481349606,0.00789157,98098.0,98097.0,0.00393942]
[1733481350233,0.00789157,98098.0,98097.0,0.00293942]
[1733481350668,0.00789157,98098.0,98092.0,0.006]
[1733481350887,0.00789157,98098.0,98089.0,0.203896]
[1733481351089,0.00789157,98098.0,98097.0,0.001]
[1733481351511,0.00789157,98098.0,98097.0,0.00393902]
[1733481351722,0.00789157,98098.0,98097.0,0.001]
[1733481351932,0.00789157,98098.0,98097.0,0.00293902]
[1733481352574,0.00789157,98098.0,98096.0,0.203881]
[1733481352802,0.00789157,98098.0,98097.0,0.00395831]
[1733481353445,0.0017298,98110.0,98097.0,0.00395831]
[1733481353446,0.0017298,98110.0,98097.0,0.28198985]
[1733481353650,0.00190416,98110.0,98109.0,0.203854]
[1733481353896,0.00190416,98110.0,98109.0,0.33188554]
[1733481354112,0.00190416,98110.0,98109.0,0.48973306]
[1733481354915,0.00190416,98110.0,98109.0,0.49873306]
[1733481355184,0.00190416,98110.0,98109.0,0.68973306]
[1733481355384,0.00190416,98110.0,98109.0,0.72988913]
[1733481355711,0.00190416,98110.0,98109.0,0.70773306]
[1733481356118,0.00190416,98110.0,98109.0,0.67749571]
[1733481356526,0.00190416,98110.0,98109.0,0.57879571]
[1733481356755,0.00190416,98110.0,98109.0,0.62879571]
[1733481357121,0.00190416,98110.0,98109.0,0.57879571]
[1733481357328,0.00190416,98110.0,98109.0,0.62879571]
[1733481357725,0.00190416,98110.0,98109.0,0.57879571]
[1733481357988,0.00190416,98110.0,98109.0,0.50279571]
[1733481358357,0.00190416,98110.0,98109.0,0.02091017]
[1733481358590,0.00190416,98110.0,98109.0,0.02192926]
[1733481358785,0.00190416,98110.0,98109.0,0.02091017]
[1733481359669,0.00190416,98110.0,98109.0,0.01191017]
[1733481359869,0.00190416,98110.0,98109.0,0.00291017]
[1733481360018,0.00190416,98110.0,98109.0,0.01191017]
[1733481360247,0.00190416,98110.0,98109.0,0.00291017]
[1733481360446,0.287034,98119.0,98109.0,0.00291017]
[1733481360810,0.287034,98119.0,98109.0,0.00117436]
[1733481360964,0.203836,98118.0,98109.0,0.00017436]
[1733481361160,0.203836,98118.0,98109.0,0.00917436]
[1733481361368,0.203836,98118.0,98109.0,0.00017436]
[1733481361601,0.203846,98114.0,98109.0,0.00917436]
[1733481361800,0.287034,98119.0,98109.0,0.00917436]
[1733481362008,0.203846,98114.0,98109.0,0.00917436]
[1733481362166,0.203846,98114.0,98109.0,0.00017436]
[1733481362375,0.203852,98110.0,98109.0,0.00917436]
[1733481362783,0.203849,98112.0,98109.0,0.00717436]
[1733481363026,0.203849,98112.0,98109.0,0.00017436]
[1733481363243,0.203849,98112.0,98109.0,0.00917436]
[1733481363470,0.0832,98119.0,98109.0,0.01817436]
[1733481363692,0.203829,98122.0,98110.0,0.0010192]
[1733481363935,0.203822,98125.0,98110.0,0.00436484]
[1733481364181,0.203831,98121.0,98110.0,0.00436484]
[1733481364418,0.203834,98119.0,98110.0,0.0010192]
[1733481364852,0.203834,98119.0,98111.0,0.00334564]
[1733481364853,0.203843,98115.0,98111.0,0.00334564]
[1733481365090,0.203843,98115.0,98109.0,0.01219352]
[1733481365571,0.0817,98128.0,98109.0,0.00319352]
[1733481365796,0.20385,98111.0,98110.0,0.00101912]
[1733481366039,0.20385,98111.0,98110.0,0.01234564]
[1733481366280,0.20385,98111.0,98110.0,0.009]
[1733481366496,0.20385,98111.0,98109.0,0.00017436]
[1733481366744,0.20385,98111.0,98110.0,0.002]
[1733481366955,0.20385,98111.0,98109.0,0.00917436]
[1733481367440,0.20385,98111.0,98110.0,0.009]
[1733481368153,0.20385,98111.0,98109.0,0.00017436]
[1733481368379,0.20385,98111.0,98109.0,0.00917436]
[1733481368599,0.20385,98111.0,98109.0,0.01817436]
[1733481368839,0.0765,98110.0,98109.0,0.01817436]
[1733481369494,0.1227,98110.0,98109.0,0.01817436]
[1733481369715,0.1227,98110.0,98109.0,0.00917436]
[1733481369953,0.1227,98110.0,98109.0,0.01817436]
[1733481370175,0.1227,98110.0,98109.0,0.00917436]
[1733481371265,0.1227,98110.0,98109.0,0.01817436]
[1733481371957,0.28077124,98110.0,98109.0,0.01817436]
[1733481372843,0.22773154,98110.0,98109.0,0.00917436]
[1733481373507,0.22773154,98110.0,98109.0,0.00017436]
[1733481373998,0.22773154,98110.0,98109.0,0.00117436]
[1733481374264,0.1227,98110.0,98109.0,0.00117436]
[1733481374899,0.14326121,98110.0,98109.0,0.00117436]
[1733481375855,0.14857475,98110.0,98109.0,0.00117436]
[1733481376057,0.14326121,98110.0,98109.0,0.00117436]
[1733481376810,0.24829275,98110.0,98109.0,0.00117436]
[1733481377347,0.22773154,98110.0,98109.0,0.00117436]
[1733481377794,0.22859464,98110.0,98109.0,0.00117436]
[1733481383464,0.203871,98101.0,98100.0,5.6e-07]
[1733481383686,0.54040254,98101.0,98100.0,5.6e-07]
[1733481383950,0.62002959,98101.0,98100.0,5.6e-07]
[1733481384423,0.66612959,98101.0,98100.0,5.6e-07]
[1733481384661,0.73666995,98101.0,98100.0,5.6e-07]
[1733481384887,0.203963,98057.0,98046.0,0.0912919]
[1733481385099,0.20394,98068.0,98044.0,0.251289]
[1733481385315,0.203968,98055.0,98051.0,0.01015461]
[1733481385561,0.203968,98055.0,98046.0,0.00101976]
[1733481385786,0.203968,98055.0,98052.0,0.01015461]
[1733481385991,0.203951,98063.0,98046.0,0.00101976]
[1733481385992,0.203969,98054.0,98050.0,0.0107268]
[1733481386200,0.203969,98054.0,98053.0,0.01015461]
[1733481386402,0.203971,98053.0,98052.0,0.00058157]
[1733481386835,0.265161,98053.0,98052.0,0.00058157]
[1733481387053,0.203971,98053.0,98052.0,0.00058157]
[1733481388093,0.20396,98058.0,98052.0,0.00058157]
[1733481388094,0.20396,98058.0,98052.0,0.00958157]
[1733481388337,0.20396,98058.0,98052.0,0.01858157]
[1733481388545,0.20396,98058.0,98053.0,0.0776]
[1733481388781,0.20396,98058.0,98053.0,0.08784076]
[1733481390221,0.407922,98058.0,98053.0,0.08784076]
[1733481390425,0.407922,98058.0,98053.0,0.0776]
[1733481390868,0.407922,98058.0,98054.0,0.01024076]
[1733481392207,0.407922,98058.0,98054.0,0.02824076]
[1733481392548,0.407922,98058.0,98054.0,0.018]
[1733481395858,0.203938,98069.0,98055.0,0.00101978]
[1733481396038,0.0451,98093.0,98055.0,0.00101978]
[1733481396039,0.203936,98070.0,98057.0,0.023]
[1733481396244,0.203938,98069.0,98058.0,0.10605116]
[1733481396558,0.203896,98089.0,98058.0,0.10605116]
[1733481396759,0.00531477,98077.0,98060.0,0.250156]
[1733481396957,0.203912,98082.0,98062.0,0.203952]
[1733481397166,0.2039,98087.0,98063.0,0.00101956]
[1733481397366,0.00531432,98088.0,98064.0,0.10503154]
[1733481397569,0.0008631,98110.0,98064.0,0.10503154]
[1733481397570,0.203893,98091.0,98078.0,0.203917]
[1733481397778,0.2039,98087.0,98079.0,0.00101945]
[1733481397986,0.203894,98090.0,98079.0,0.00101945]
[1733481398227,0.203902,98086.0,98080.0,0.00101946]
[1733481398410,0.203902,98086.0,98076.0,0.00101948]
[1733481398611,0.11034533,98109.0,98081.0,0.01026088]
[1733481398811,0.203856,98108.0,98082.0,0.00101941]
[1733481398969,0.10503154,98107.0,98083.0,0.00101941]
[1733481399177,0.10503154,98107.0,98081.0,0.0801]
[1733481399382,0.203871,98102.0,98084.0,0.01026088]
[1733481399583,0.203888,98093.0,98085.0,0.00101941]
[1733481399792,0.20389,98092.0,98085.0,0.01026088]
[1733481399995,0.00017416,98107.0,98092.0,0.203889]
[1733481400196,0.203863,98105.0,98094.0,0.203886]
[1733481400412,0.203863,98105.0,98095.0,0.00101929]
[1733481400625,0.203863,98105.0,98096.0,0.00101929]
[1733481400825,0.203872,98101.0,98096.0,0.00101929]
[1733481401037,0.203872,98101.0,98092.0,0.009]
[1733481401244,0.203872,98101.0,98097.0,0.01021028]
[1733481401452,0.000865,98100.0,98094.0,0.00901931]
[1733481401662,0.000865,98100.0,98098.0,0.01021028]
[1733481401885,0.000865,98100.0,98094.0,0.00101931]
[1733481402290,0.000865,98100.0,98095.0,0.01122958]
[1733481402903,0.000865,98100.0,98096.0,0.53079254]
[1733481403175,0.000865,98100.0,98098.0,0.278977]
[1733481403375,0.00017416,98107.0,98099.0,0.00101919]
[1733481403521,0.00017416,98107.0,98100.0,0.20489119]
[1733481403723,0.00017416,98107.0,98104.0,0.203863]
[1733481403938,0.00017416,98107.0,98105.0,0.00101919]
[1733481404142,0.00017416,98107.0,98106.0,0.01017549]
[1733481404342,0.00017416,98107.0,98101.0,0.00101919]
[1733481404546,0.00017416,98107.0,98102.0,0.01017549]
[1733481404850,0.00017416,98107.0,98104.0,0.009]
[1733481405121,0.00017416,98107.0,98104.0,0.01001922]
[1733481405274,0.203862,98106.0,98105.0,0.01017549]
[1733481405692,0.203862,98106.0,98104.0,0.009]
[1733481406076,0.203862,98106.0,98099.0,0.00101927]
[1733481406251,0.203862,98106.0,98091.0,0.01038988]
[1733481406252,0.203872,98101.0,98095.0,0.00101927]
[1733481406456,0.203863,98105.0,98100.0,0.01017549]
[1733481406658,0.203863,98105.0,98095.0,0.00101927]
[1733481406860,0.203863,98105.0,98104.0,0.009]
[1733481407283,0.203863,98105.0,98099.0,0.009]
[1733481407490,0.203863,98105.0,98100.0,0.009]
[1733481407744,0.203863,98105.0,98096.0,0.00101928]
[1733481407987,0.203863,98105.0,98104.0,0.009]
[1733481408199,0.203863,98105.0,98104.0,0.018]
[1733481408760,0.00017416,98107.0,98104.0,0.018]
[1733481408761,0.20403416,98107.0,98104.0,0.018]
[1733481408968,0.00017416,98107.0,98104.0,0.018]
[1733481409164,0.00017416,98107.0,98105.0,0.01006261]
[1733481409368,0.00017416,98107.0,98106.0,0.00101924]
[1733481409573,0.00017416,98107.0,98106.0,0.01006261]
[1733481409775,0.00017416,98107.0,98104.0,0.203863]
[1733481409975,0.00017416,98107.0,98106.0,0.01006261]
[1733481410174,0.00017416,98107.0,98106.0,0.00101919]
[1733481410418,0.00017416,98107.0,98106.0,0.0110818]
[1733481410602,0.00017416,98107.0,98106.0,0.0910818]
[1733481410810,0.00017416,98107.0,98106.0,0.1000818]
[1733481412416,0.00017416,98107.0,98106.0,0.0910818]
[1733481412797,0.00017416,98107.0,98106.0,0.1090818]
[1733481412993,0.00017416,98107.0,98106.0,0.1000818]
[1733481413227,0.00017416,98107.0,98106.0,0.0910818]
[1733481413399,0.00017416,98107.0,98106.0,0.1000818]
[1733481413608,0.00017416,98107.0,98106.0,0.1090818]
[1733481414830,0.00017416,98107.0,98106.0,0.23711334]
[1733481415050,0.0008631,98110.0,98106.0,0.23609415]
[1733481415250,0.0008631,98110.0,98109.0,0.023]
[1733481415483,0.0008631,98110.0,98109.0,0.66920086]
[1733481415698,0.0008631,98110.0,98109.0,0.66818187]
[1733481415912,0.0008631,98110.0,98109.0,0.67821911]
[1733481416559,0.0008631,98110.0,98109.0,0.8238188]
[1733481416968,0.0008631,98110.0,98109.0,0.82367195]
[1733481417175,0.0008631,98110.0,98109.0,0.48751506]
[1733481417393,0.0008631,98110.0,98109.0,0.69607057]
[1733481418021,0.0008631,98110.0,98109.0,0.4964848]
[1733481418236,0.0008631,98110.0,98109.0,0.35992278]
[1733481418441,0.203808,98132.0,98118.0,0.203834]
[1733481418673,0.203808,98132.0,98119.0,0.00101901]
[1733481418674,0.203813,98129.0,98119.0,0.00101901]
[1733481418876,0.203813,98129.0,98112.0,0.02401903]
[1733481419006,0.203813,98129.0,98115.0,0.20384]
[1733481419223,0.203813,98129.0,98116.0,0.10605057]
[1733481419437,0.407626,98129.0,98118.0,0.009]
[1733481419644,0.203813,98129.0,98119.0,0.00101903]
[1733481420051,0.203813,98129.0,98120.0,0.01003724]
[1733481420252,0.203813,98129.0,98121.0,0.00101903]
[1733481420475,0.203813,98129.0,98121.0,0.01100911]
[1733481420679,0.203824,98124.0,98121.0,0.00999008]
[1733481421091,0.203824,98124.0,98118.0,0.009]
[1733481422327,0.203824,98124.0,98121.0,0.009]
[1733481422871,0.203824,98124.0,98113.0,0.00101908]
[1733481423215,0.203833,98120.0,98118.0,0.018]
[1733481423634,0.203834,98119.0,98106.0,0.24015866]
[1733481423787,0.203827,98122.0,98121.0,0.018]
[1733481424201,0.203827,98122.0,98121.0,0.009]
[1733481424981,0.0809,98128.0,98107.0,0.10503154]
[1733481425188,0.203842,98116.0,98107.0,0.10503154]
[1733481425573,0.0809,98128.0,98118.0,0.009]
[1733481425574,0.0494,98123.0,98118.0,0.009]
[1733481425776,0.407654,98122.0,98118.0,0.009]
[1733481426002,0.203859,98107.0,98106.0,0.00017416]
[1733481427231,0.203848,98112.0,98106.0,0.00017416]
[1733481427423,0.203848,98112.0,98106.0,0.00917416]
[1733481427985,0.203858,98108.0,98106.0,0.00917416]
[1733481428775,0.203858,98108.0,98106.0,0.00017416]
[1733481428982,0.203858,98108.0,98106.0,0.00917416]
[1733481429148,0.203848,98112.0,98106.0,0.01817416]
[1733481429345,0.0008644,98130.0,98106.0,0.00917416]
[1733481429587,0.203857,98108.0,98106.0,0.00017416]
[1733481429907,0.203857,98108.0,98106.0,0.01817416]
[1733481430143,0.203857,98108.0,98106.0,0.00917416]
[1733481430480,0.203857,98108.0,98106.0,0.01417416]
[1733481430695,0.203857,98108.0,98106.0,0.00917416]
[1733481431111,0.203857,98108.0,98106.0,0.00017416]
[1733481431344,0.203857,98108.0,98106.0,0.00917416]
[1733481431542,0.203836,98119.0,98106.0,0.00917416]
[1733481431808,0.203829,98122.0,98107.0,0.00101921]
[1733481432009,0.203829,98122.0,98109.0,0.082]
[1733481432146,0.203829,98121.0,98110.0,0.00101915]
[1733481432549,0.203829,98121.0,98111.0,0.01004348]
[1733481432550,0.203838,98117.0,98111.0,0.01004348]
[1733481432934,0.203838,98117.0,98109.0,0.082]
[1733481432935,0.203829,98121.0,98109.0,0.082]
[1733481433133,0.203829,98121.0,98110.0,0.01106264]
[1733481433343,0.203819,98126.0,98111.0,0.10503154]
[1733481433547,0.0008644,98130.0,98113.0,0.203846]
[1733481433754,0.0008644,98130.0,98112.0,0.20486707]
[1733481433755,0.203821,98125.0,98114.0,0.01106253]
[1733481434551,0.0008644,98130.0,98114.0,0.01106253]
[1733481434718,0.0008644,98130.0,98120.0,0.20383]
[1733481435037,0.0008644,98130.0,98122.0,0.203827]
[1733481435289,0.0008644,98130.0,98123.0,0.00101902]
[1733481435504,0.0008644,98130.0,98124.0,0.203823]
[1733481435712,0.0008644,98130.0,98128.0,0.203813]
[1733481435914,0.326,98142.0,98130.0,0.203811]
[1733481436116,0.20379,98141.0,98129.0,0.009991]
[1733481436287,0.203797,98137.0,98126.0,0.203818]
[1733481436544,0.203797,98137.0,98130.0,0.009991]
[1733481436755,0.203797,98137.0,98127.0,0.00101897]
[1733481436948,0.203797,98137.0,98130.0,0.009991]
[1733481437082,0.203797,98137.0,98127.0,0.00101897]
[1733481437288,0.20379,98141.0,98130.0,0.009991]
[1733481437867,0.20379,98141.0,98128.0,0.203815]
[1733481438083,0.20379,98141.0,98130.0,0.009991]
[1733481438295,0.20379,98141.0,98129.0,0.203811]
[1733481438460,0.203798,98137.0,98130.0,0.009991]
[1733481438667,0.326,98142.0,98130.0,0.203811]
[1733481438668,0.2046549,98140.0,98130.0,0.203811]
[1733481438862,0.0008639,98140.0,98130.0,0.213802]
[1733481439063,0.0008639,98140.0,98130.0,0.214802]
[1733481439564,0.0008639,98140.0,98130.0,0.010991]
[1733481439565,0.203796,98138.0,98130.0,0.010991]
[1733481439765,0.203797,98137.0,98130.0,0.010991]
[1733481439976,0.203805,98133.0,98130.0,0.010991]
[1733481440176,0.40761,98133.0,98130.0,0.010991]
[1733481440375,0.49041,98133.0,98130.0,0.010991]
[1733481440587,0.49041,98133.0,98130.0,0.001]
[1733481442224,0.2046549,98140.0,98130.0,0.001]
[1733481442225,0.203799,98136.0,98130.0,0.001]
[1733481442424,0.203806,98133.0,98130.0,0.0109828]
[1733481442628,0.203806,98133.0,98130.0,0.1479774]
[1733481442828,0.203806,98133.0,98130.0,0.0109828]
[1733481443466,0.203799,98136.0,98130.0,0.34824171]
[1733481444099,0.21445043,98131.0,98130.0,0.53070306]
[1733481444310,0.01595308,98131.0,98130.0,0.53070306]
[1733481444520,0.01595308,98131.0,98130.0,0.34824171]
[1733481444744,0.01595308,98131.0,98130.0,0.5763184]
[1733481444940,0.01595308,98131.0,98130.0,0.57673174]
[1733481445675,0.01595308,98131.0,98130.0,0.34829053]
[1733481446331,0.01595308,98131.0,98130.0,0.57676361]
[1733481446541,0.01595308,98131.0,98130.0,0.57678483]
[1733481447166,0.01595308,98131.0,98130.0,0.34829053]
[1733481447380,0.01595308,98131.0,98130.0,0.57677686]
[1733481447607,0.01595308,98131.0,98130.0,0.34829053]
[1733481448483,0.01595308,98131.0,98130.0,0.53110959]
[1733481449127,0.01595308,98131.0,98130.0,0.53123175]
[1733481449593,0.01595308,98131.0,98130.0,0.34841263]
[1733481450578,0.00531165,98131.0,98130.0,0.34841263]
[1733481451612,0.00531165,98131.0,98130.0,0.48552935]
[1733481451867,0.00531165,98131.0,98130.0,0.34841263]